Cogmind - Beta 16 @@@ ROGUE MODE // 2025.11.21 @ 20:30:48 // AFD2020/Player2 Player: Minty Result: Destroyed by P9-DVA(R) with Subdweller Laser Performance ------------- Evolutions (0) 0 Regions Visited (3) 600 Robots Destroyed (17) 85 Value Destroyed (266) 266 Prototype IDs (0) 0 Alien Tech Used (0) 0 Bonus (211) 211 TOTAL SCORE: 1162 Bonus ------- Follower Combat Kills 301 Friendly Fire -90 Cogmind --------- Core Integrity 0/250 Matter 278/300 Energy 141/170 System Corruption 6% Temperature Cool (80) Movement Treading (160) Location -10/Subcaves Parts ------- > --- POWER (1) -------- Makeshift Power Source > --- PROPULSION (2) --- Light Treads > --- UTILITY (2) ------ Small Storage Unit Makeshift Light Armor Plating > --- WEAPON (2) ------- Beamcaster > --- INVENTORY (8) ---- Ion Engine Wheel Wheel Weapon Shielding Weapon Shielding Piercing Trap Signal Generator Peak State ------------ > --- POWER ------------ Makeshift Power Source > --- PROPULSION ------- Light Treads > --- UTILITY ---------- Small Storage Unit Makeshift Light Armor Plating > --- WEAPON ----------- EM Pulse Gun Beamcaster > --- INVENTORY -------- Ion Engine Wheel Wheel Weapon Shielding Weapon Shielding Piercing Trap Signal Generator [Rating: 17] Favorites ----------- Power Light Ion Engine Engine Light Ion Engine Propulsion Light Treads Treads Light Treads Leg Aluminum Leg Utility Small Storage Unit Storage Small Storage Unit Protection Weapon Shielding Weapon Small Laser Energy Gun Small Laser Ballistic Gun Light Assault Rifle Special Weapon Mining Laser Build | -11 -10 -10 -10 ------- Run | Yrd Mat Min Sub Slots Evolved . | . . . . Power . | . . . . Propulsion . | . . . . Utility . | . . . . Weapon . | . . . . Parts Attached 12 | . 7 2 3 Power 2 | . 1 . 1 Engine 2 | . 1 . 1 Core . | . . . . Reactor . | . . . . Propulsion 2 | . 1 1 . Treads 2 | . 1 1 . Leg . | . . . . Wheel . | . . . . Hover . | . . . . Flight . | . . . . Utility 2 | . 1 . 1 Device . | . . . . Storage . | . . . . Processor . | . . . . Hackware . | . . . . Protection 2 | . 1 . 1 Artifact . | . . . . Weapon 6 | . 4 1 1 Energy Gun 5 | . 3 1 1 Energy Cannon . | . . . . Ballistic Gun . | . . . . Ballistic Cannon . | . . . . Launcher . | . . . . Special Weapon 1 | . 1 . . Impact Weapon . | . . . . Slashing Weapon . | . . . . Piercing Weapon . | . . . . Special Melee Weapon . | . . . . Unidentified Prototypes . | . . . . Corrupted Parts 1 | . 1 . . System Corruption 6 | . 6 . . Parts Lost 7 | . 4 . 3 Power 2 | . 1 . 1 Propulsion 3 | . 2 . 1 Utility . | . . . . Weapon 2 | . 1 . 1 Highest Loss Streak 3 | . 2 . 3 To Critical Strikes . | . . . . Average Backups 5 | . 4 5 5 Power 1 | . 1 1 1 Propulsion 2 | . 2 3 2 Utility 1 | . . 1 1 Weapon . | . . . . Tool/Special . | . . . . Unused Backups 1 | . . . 1 Power . | . . . . Propulsion . | . . . . Utility 1 | . . . 1 Weapon . | . . . . Tool/Special . | . . . . Average Slot Usage (%) 83 | . 73 85 89 Engine 13 | . 12 14 13 Treads 17 | . 4 14 27 Leg 4 | . 15 . . Storage 14 | . 14 14 14 Protection 12 | . 9 14 14 Energy Gun 20 | . 16 28 18 Peak Build Rating 17 | . 6 7 17 Average Rating 7 | . 5 6 9 On Entrance 6 | 6 6 6 7 Avg Prop Armor Cover (%) . | . . . . Naked Turns . | . . . . Heaviest Build 18 | 13 13 12 18 Greatest Support 40 | 20 20 40 40 Greatest Overweight (x) 2 | . 2 . . Average Overweight (x) . | . . . . Largest Inventory Capacity 8 | . 8 8 8 Average Capacity 8 | . 8 8 8 Most Carried 8 | . 6 6 8 Average Carried 5 | . 4 5 6 Final Capacity 8 | 8 8 8 8 Final Carried 7 | 6 5 5 7 Class Distribution -------------------- 86% | Mutant 13% | Scavenger-Mutant Dominant Class ---------------- Mutant | -10/Materials Mutant | -10/Mines Mutant | -10/Subcaves Resources | -11 -10 -10 -10 ----------- Run | Yrd Mat Min Sub Matter Collected 381 | 200 87 . 94 Remotely . | . . . . Salvage Created 513 | . 406 56 51 Parts 42 | . 31 7 4 Haulers Intercepted 1 | . 1 . . Recyclers Shooed 1 | . 1 . . Parts Field Recycled . | . . . . Retrieved Matter . | . . . . Parts Self-Destructed . | . . . . Prevented . | . . . . Parts Restored . | . . . . Kills | -11 -10 -10 -10 ------- Run | Yrd Mat Min Sub Combat Hostiles Destroyed 10 | . 5 4 1 Guns 9 | . 4 4 1 AOE 1 | . 1 . . Classes Destroyed 8 | . 7 . 1 Worker 1 | . 1 . . Builder 2 | . 2 . . Hauler 1 | . 1 . . Recycler 1 | . 1 . . Watcher 2 | . 2 . . Swarmer 6 | . 2 4 . Grunt 3 | . 3 . . Subdweller 1 | . . . 1 Best Kill Streak 6 | . 6 2 1 Combat Bots Only 2 | . 2 2 1 Max Kills in Single Turn 1 | . 1 1 1 Gunslinging . | . . . . Exploded 1 | . 1 . . Melee . | . . . . Uniques/NPCs Destroyed . | . . . . Combat | -11 -10 -10 -10 -------- Run | Yrd Mat Min Sub Hostile Shots Fired 88 | . 47 22 19 Missed 23 | . 9 7 7 Hits 65 | . 38 15 12 Projectile 65 | . 38 15 12 Critical Strikes 1 | . 1 . . Damage Taken 921 | . 526 114 281 Core 211 | . 138 25 48 Absorbed by Shields . | . . . . Redirected to Shielding 17 | . 10 7 . Core Remaining (%) 100 | 100 . . . Volleys Fired 73 | . 57 10 6 Largest 2 | . 2 2 2 Hottest 115 | . 80 80 115 Shots Fired 86 | . 58 20 8 Gun 86 | . 58 20 8 Cannon . | . . . . Launcher . | . . . . Special . | . . . . Kinetic . | . . . . Thermal 39 | . 18 15 6 Explosive . | . . . . Electromagnetic 47 | . 40 5 2 Robot Hit Streak 11 | . 11 4 4 Robot Miss Streak 5 | . 5 5 1 Penetration Max . | . . . . Secondary Targets 2 | . . 2 . Max Gunslinging Chain 1 | . . 1 . Shots Hit Robots 52 | . 35 10 7 Core Hits 22 | . 17 4 1 Critical Kills . | . . . . Critical Parts Destroyed . | . . . . Critical Strikes 1 | . 1 . . Corrupt 1 | . 1 . . Melee Attacks . | . . . . Impact . | . . . . Slashing . | . . . . Piercing . | . . . . Sneak Attacks . | . . . . Combat Hostiles . | . . . . Follow-up Attacks . | . . . . Damage Inflicted 896 | . 646 121 129 Guns 734 | . 485 120 129 Cannons . | . . . . Explosions 161 | . 161 . . Melee . | . . . . Ramming 1 | . . 1 . Kinetic . | . . . . Thermal 473 | . 281 86 106 Explosive . | . . . . Electromagnetic 422 | . 365 34 23 Impact . | . . . . Slashing . | . . . . Piercing . | . . . . Highest Corruption 6 | . 6 6 6 Average Corruption 6 | . 6 6 6 Corruption Purged . | . . . . Corruption Blocked . | . . . . Effects 38 | . 4 13 21 Message Errors 8 | . . 1 7 Matter Fused 7 | . 1 2 4 Heat Flow Errors 8 | . 1 3 4 Energy Discharges 5 | . . 2 3 Data Loss (minor) 9 | . 2 4 3 Alerts 1 | . . 1 . Overload Shots . | . . . . Overflow Damage . | . . . . Projectiles . | . . . . Explosions . | . . . . Melee . | . . . . Knockbacks . | . . . . Impact . | . . . . Kinetic . | . . . . Secondary . | . . . . Self-Inflicted Damage 19 | . 19 . . Shots 1 | . 1 . . Rammed 2 | . . 2 . Targets Rammed 2 | . . 2 . Kicked . | . . . . Crushed . | . . . . Highest Temperature 259 | . 132 218 259 Average Temperature 55 | . 41 61 76 Received Heat Transfer 369 | . 291 . 78 Siege Activations . | . . . . Martial Activations . | . . . . Shielding Activations . | . . . . Robots Disrupted . | . . . . Combat Hostiles . | . . . . Robots Corrupted . | . . . . Combat Hostiles . | . . . . Parts Fried . | . . . . Impact Corruptions . | . . . . Robots Melted . | . . . . Combat Hostiles . | . . . . Parts Melted . | . . . . Heat Transferred 853 | . 468 200 185 Parts Sabotaged . | . . . . Parts Stolen . | . . . . Parts Stripped . | . . . . Power Chain Reactions 4 | . 4 . . Alert | -11 -10 -10 -10 ------- Run | Yrd Mat Min Sub Maximum Alert Level 1 | . 1 . . Low Security (%) 87 | . 76 100 . Level 1 12 | . 23 . . Level 2 . | . . . . Level 3 . | . . . . Level 4 . | . . . . Level 5 . | . . . . High Security . | . . . . Max Security . | . . . . Peak Influence 245 | . 245 174 . Initial 70 | . . 70 . Average 114 | . 117 111 . Influence Increases 605 | . 431 174 . Destroy 0b10 Robot/C 360 | . 240 120 . Destroy 0b10 Robot/NC 35 | . 35 . . Destroy Leader 76 | . 56 20 . Allied During Kill 111 | . 77 34 . Successful Hack 6 | . 6 . . Destroy Structure 17 | . 17 . . Influence Decreases 605 | . 248 311 46 Entered New Map 138 | . . 113 25 Time Decay 427 | . 208 198 21 Lost Part 40 | . 40 . . Squads Dispatched 3 | . 2 1 . Investigation 1 | . 1 . . Extermination . | . . . . Reinforcement 1 | . 1 . . Assault 1 | . . 1 . Garrison . | . . . . Intercept . | . . . . Searches Triggered . | . . . . Construction Impeded . | . . . . Haulers Reinforced . | . . . . Active Scanning Responses . | . . . . Cargo Convoy Interrupts . | . . . . Stealth | -11 -10 -10 -10 --------- Run | Yrd Mat Min Sub Distress Signals . | . . . . Communications Jammed . | . . . . Distress Signals . | . . . . Times Spotted 28 | . 15 6 7 Peak Tracking Total 4 | . 4 3 4 Tactical Retreats . | . . . . Traps | -11 -10 -10 -10 ------- Run | Yrd Mat Min Sub Traps Triggered . | . . . . Indirectly . | . . . . Trap Hack Attempts . | . . . . Triggered . | . . . . Disarmed . | . . . . Reprogrammed . | . . . . Reused . | . . . . Traps Extracted . | . . . . Installed . | . . . . Triggered . | . . . . Most Traps Carried 1 | . . . 1 Machines | -11 -10 -10 -10 ---------- Run | Yrd Mat Min Sub Machines Disabled . | . . . . Max in Single Turn . | . . . . Machines Repaired . | . . . . Machines Dismantled . | . . . . Machines Sabotaged . | . . . . Overloaded Fab Kills . | . . . . Hacking | -11 -10 -10 -10 --------- Run | Yrd Mat Min Sub Machines Accessed 2 | . 2 . . Terminals 2 | . 2 . . Fabricators . | . . . . Repair Stations . | . . . . Recycling Units . | . . . . Scanalyzers . | . . . . Garrison Access . | . . . . Total Hacks 6 | . 6 . . Successful 2 | . 2 . . Failed 4 | . 4 . . Catastrophic . | . . . . Database Lockouts . | . . . . Manual 5 | . 5 . . Terminals 6 | . 6 . . Fabricators . | . . . . Repair Stations . | . . . . Recycling Units . | . . . . Scanalyzers . | . . . . Garrison Access . | . . . . Terminal Hacks 2 | . 2 . . Robot Analysis 1 | . 1 . . Alert Level 1 | . 1 . . Fabricator Hacks . | . . . . Repair Station Hacks . | . . . . Recycling Unit Hacks . | . . . . Scanalyzer . | . . . . Garrison Access Hacks . | . . . . Unauthorized Hacks . | . . . . Terminals . | . . . . Fabricators . | . . . . Repair Stations . | . . . . Recycling Units . | . . . . Scanalyzers . | . . . . Garrison Access . | . . . . Data Cores Recovered . | . . . . Used . | . . . . Hacking Detections 2 | . 2 . . Full Trace Events . | . . . . Feedback Events . | . . . . Feedback Blocked . | . . . . Robot Schematics Acquired . | . . . . Robots Built . | . . . . Authchips . | . . . . Time . | . . . . Total Robot Build Rating . | . . . . Part Schematics Acquired . | . . . . Parts Built . | . . . . Authchips . | . . . . Time . | . . . . Total Part Build Rating . | . . . . Part Studies Acquired . | . . . . Parts Repaired . | . . . . Time . | . . . . Parts Recycled . | . . . . Recycled Matter . | . . . . Retrieved Matter . | . . . . Retrieved Components . | . . . . Parts Scanalyzed . | . . . . Part Schematics Acquired . | . . . . Parts Damaged . | . . . . Bothacking | -11 -10 -10 -10 ------------ Run | Yrd Mat Min Sub Used RIF Installer . | . . . . Robots Hacked . | . . . . Non-combat . | . . . . Combat . | . . . . Robot Hacks Applied . | . . . . Relay Couplers Released . | . . . . Fabnet Peak Effective % . | . . . . Robots Rewired . | . . . . Allies Hacked . | . . . . Hacks Repelled . | . . . . Allies | -11 -10 -10 -10 -------- Run | Yrd Mat Min Sub Total Allies 4 | . 1 3 . Largest Group 4 | . 1 4 4 Highest-Rated Group 142 | . 59 142 142 Highest-Rated Ally 63 | . 59 59 63 Total Orders . | . . . . Ally Attacks 76 | . 34 8 34 Total Damage 966 | . 497 69 400 Kills 13 | . 7 2 4 Allies Corrupted . | . . . . Allies Melted . | . . . . Intel | -11 -10 -10 -10 ------- Run | Yrd Mat Min Sub Active Infowar (turns) . | . . . . Robot Analysis Total 1 | . 1 . . Derelict Logs Recovered 3 | . . 3 . Drone Launches . | . . . . Drone Recoveries . | . . . . Exploration | -11 -10 -10 -10 ------------- Run | Yrd Mat Min Sub Turns Passed 1732 | . 501 413 818 Spaces Moved 767 | 1 224 232 310 Core 4 | . 4 . . Treads 631 | . 89 232 310 Legs 132 | 1 131 . . Wheels . | . . . . Hover . | . . . . Flight . | . . . . Fastest Speed 120 | 120 120 160 160 Average Speed 155 | 120 146 160 160 Slowest Speed 190 | 120 190 160 160 Overloaded Moves . | . . . . Propulsion Burnouts . | . . . . Robots Hopped . | . . . . Potential Cave-ins . | . . . . Cave-ins Triggered . | . . . . Exploration Rate (%) 31 | 1 29 75 19 Regions Visited 3 Branch Regions 2 Pre-discovered Areas . | . . . . Known Exits Taken 1 | . . 1 . Unknown Exits Taken 2 | 1 1 . . Scrap Searched 1 | . . 1 . Spaces Dug . | . . . . Terrain Destroyed 14 | . 14 . . Melee . | . . . . Projectile . | . . . . AOE 14 | . 14 . . Terrain Rammed . | . . . . Walls Destroyed . | . . . . Machines Disabled . | . . . . Actions | -11 -10 -10 -10 --------- Run | Yrd Mat Min Sub Total 1215 | . 338 252 625 Wait 344 | . 43 6 295 Move 764 | . 223 231 310 Hop . | . . . . Pick Up 6 | . 2 1 3 Fast Attach 6 | . 6 . . Attach 4 | . . 1 3 Detach 2 | . . . 2 Swap 7 | . 2 1 4 Drop 7 | . 5 . 2 Fire 73 | . 57 10 6 Melee . | . . . . Ram . | . . . . Kick . | . . . . Crush 2 | . . 2 . Escape Stasis . | . . . . Rewire . | . . . . Trap . | . . . . Miscellaneous . | . . . . Route ------- -11/Scrapyard -10/Materials -10/Mines (discovered 3 exits: [*Mat x2] / *Sub) -10/Subcaves (discovered 1 exit: [*Mat]) History --------- Turn | Location | Event 1 | -11/Scrapyard | Discovered new exit (range 0) 1 | -11/Scrapyard | Entered Materials 178 | -10/Materials | Discovered new exit (range 13) 306 | -10/Materials | Build established: Mutant 327 | -10/Materials | Core integrity fell below 50% 502 | -10/Materials | Entered Mines 548 | -10/Mines | Learned Materials emergency access door positions 647 | -10/Mines | Discovered new exit (range 9) 650 | -10/Mines | Core integrity fell below 20% 806 | -10/Mines | Identified exit to Subcaves 830 | -10/Mines | Discovered new exit (range 15) 835 | -10/Mines | Met a Derelict testing a Signal Generator 846 | -10/Mines | Found Signal Generator 915 | -10/Mines | Entered Subcaves 915 | -10/Subcaves | Accompanied by 3 allies 920 | -10/Subcaves | Led the pair of lost Derelicts to an unsafe place 974 | -10/Subcaves | Curiously followed by a Cobbler waking with a query about "LVR3C" 1705 | -10/Subcaves | A Subdweller sparked back to life 1706 | -10/Subcaves | Discovered new exit (range 13) 1733 | -10/Subcaves | Destroyed by P9-DVA(R) with Subdweller Laser Last Messages --------------- 01638_ Subatomizers dissect the Imp. Heat Sink. 01657_ System corrupted: Energy discharge (-32). 01687_ System corrupted: Matter fused (-6). 01702_ Lgt. Ion Engine destroyed. 01704_ OU-PAN(R) destroyed. 01705_ 7Y-HF3(R) creaks and sparks as it begins to move. 01706_ EXIT=FOUND 01707_ 21-XW7(R) suffers critical hit (Burn). 01712_ QU-92V(g) destroyed. 01713_ Acquired 27 matter. 01714_ Lgt. Treads destroyed. 01714_ 21-XW7(R) destroyed. 01716_ PP6ILMUAZMH GV B90P,MHPB,#B1 ,67LV4 01716_ Dropped Sml. Laser. Player 2: "Get out of the way, you big piece of cannon fodder." 01723_ EM Pulse Gun destroyed. 01724_ 7Y-HF3(R) affixes Scrap Shield Fragment to Scrap Shield. 01725_ Subatomizers dissect the Sub. Optics. 01726_ 7Y-HF3(R) destroyed. 01731_ System corrupted: Matter fused (-7). Map ----- +----------------------------------------------------+ | ???????????????# #????????? | | ???????????????# !### ###??????? | | ??????????????## = #?## #### #? | | ??????????????# #??# ## #? | | ?????????????## *!#?# ####### # | | ##????????#### ## #?????# | | # #??????## ### ????## #### # | | #??#### #?#### ????# #???? # | | ### ##### #????### ???# #??????# | | # #####*! ####???## #? #?????? | | ##### ## ##????# #? #?????? | | ????# ### #?????## # ### ##?????? | | ???## ### = ##???????# ?##???##??????? | | ???# ## ## #?????????#???????????????? | | ???# ##?# ##????####?????????????????? | | ???# #### #???##???## ## #??????????????? | | ??##" ####### #????#### ??????????????? | | ?##"" ##?## ## ###??#; ??????????????? | | ?#""" #### # #### ????????????????? | | ?#""" #?????????????????????? | | ?## O #???##?????? ?????????? | | ??# ## #?? # # ?????????? | | ??# ## ####### ## #????????? | | ?# ### #?????##@* R < #??????????? | | ? ??## #??????#!%[ # # #??????????? | | ???### ##??????# =@#####" #?????????????? | | # ?????# #???????##*&R&#??? " ?????????????? | | ### ?????##""#????????##&!##????????????????????? | | ??## ??????#" ?????????#%%#?????????????????????? | | ???##??????"" ?????????#[&=#????????????????????? | | ???????????" #???????? &!!#????????????????????? | | ???????????? #????????# =%#????????????????????? | | ???????????? ##????????# ]#????????????????????? | | ?????????????##?????????# ????????????????????? | | ????????????????????????? ????????????????????? | | ????????????????????????? ???????????????????? | | ????????????????????????? "???????????????????? | | ?????????????????????????###"#???????????????????? | | ????????????????????????????##???????????????????? | | ?????????????????????????????????????????????????? | | ?????????????????????????????????????????????????? | | ?????????????????????????????????????????????????? | | ?????????????????????????????????????????????????? | | ?????????????????????????????????????????????????? | | ?????????????????????????????????????????????????? | | ?????????????????????????????????????????????????? | | ?????????????????????????????????????????????????? | | ?????????????????????????????????????????????????? | | ?????????????????????????????????????????????????? | | ?????????????????????????????????????????????????? | +----------------------------------------------------+ Best States ------------- Heat Dissipation 25 Energy Generation 15 Energy Capacity 250 Matter Stores 300 Matter Capacity 300 Sight Range 16 Terrain Scan Density 10 Armor Coverage 100 Weapon Shielding 33 Evasion (%) 55 Recoil Reduction 2 Item Schematics ----------------- None Robot Schematics ------------------ None Fabricated ------------ Nothing Repaired ---------- Nothing Studied --------- None Alien Tech Used ----------------- None Achievements -------------- None Challenges ------------ None Player 2 | -11 -10 -10 -10 ---------- Run | Yrd Mat Min Sub Slots Evolved . | . . . . Power . | . . . . Propulsion . | . . . . Utility . | . . . . Weapon . | . . . . Parts Attached 15 | . 13 . 2 Parts Lost . | . . . . Damage Taken 462 | . 403 22 37 Core 41 | . 41 . . Player 2/Cogmind (%) 16 | . 22 . . Absorbed by Shields . | . . . . Damage Inflicted 778 | . 497 69 212 Player 2/Cogmind (%) 46 | . 43 36 62 Combat Hostiles Destroyed 12 | . 7 2 3 Player 2/Cogmind (%) 54 | . 58 33 75 Game ------ Seed DecoyClaymoresBeacon Manual? 0 Play Time 00:13:44 Cumulative 1227.1 hours Start 2025.11.21 @ 19:15:40 End 2025.11.21 @ 20:30:48 Sessions 5 Manual Loads 0 Difficulty Rogue Special Mode AFD2020/Player2 Game No. 1510 Rogue 1226 Adventurer 124 Explorer 160 Win Type - Total 58 Types 44/0/8/4/1/0/0/1/0/0 Lore% 93 Gallery% 86 Achievement% 65 Wizard Run 0 Options --------- Layout 0 ASCII 0 Keyboard 1 Movement Numpad Keybinds 0 Fullscreen 2 Font 18/X11 Map View 76x50 Zoom Use 5% Tactical HUD 1 Map Filters NONE Filters NONE Steam 1 RUN: 36494a57-341b-457e-b9f3-7dce9e5edbc2